bitfinex/quotes_BTCUSD_20240727
["timestamp","ask_amount","ask_price","bid_price","bid_amount"]
[1722043655564,0.19821127,67934.0,67933.0,0.081224]
[1722043656884,0.19818339,67934.0,67933.0,0.081224]
[1722043659860,0.42128439,67934.0,67933.0,0.018924]
[1722043660113,0.71568739,67934.0,67933.0,0.018924]
[1722043660328,0.42138424,67934.0,67933.0,0.018924]
[1722043661872,0.44448513,67934.0,67933.0,0.018924]
[1722043663992,0.73888813,67934.0,67933.0,0.018924]
[1722043665147,0.44448513,67934.0,67933.0,0.018924]
[1722043666213,0.57686663,67934.0,67933.0,0.018924]
[1722043666825,0.37096557,67934.0,67933.0,0.018924]
[1722043667028,0.57713318,67934.0,67933.0,0.018924]
[1722043667229,0.73914315,67934.0,67933.0,0.018924]
[1722043667823,0.84843529,67934.0,67933.0,0.018924]
[1722043669439,0.71604226,67934.0,67933.0,0.018924]
[1722043670489,0.71606403,67934.0,67933.0,0.018924]
[1722043671106,0.73916492,67934.0,67933.0,0.018924]
[1722043671511,0.71606403,67934.0,67933.0,0.018924]
[1722043673991,0.715971,67934.0,67933.0,0.018924]
[1722043674654,0.73907189,67934.0,67933.0,0.018924]
[1722043675811,0.87154482,67934.0,67933.0,0.018924]
[1722043676021,0.73907189,67934.0,67933.0,0.018924]
[1722043676609,0.715971,67934.0,67933.0,0.018924]
[1722043676871,0.640071,67934.0,67933.0,0.018924]
[1722043677079,0.56636768,67934.0,67933.0,0.018924]
[1722043677287,0.64021532,67934.0,67933.0,0.018924]
[1722043678752,0.66066374,67934.0,67933.0,0.018924]
[1722043679379,0.66066374,67934.0,67933.0,0.078924]
[1722043680279,0.21649833,67934.0,67933.0,0.078924]
[1722043680539,0.14265069,67934.0,67933.0,0.157524]
[1722043680758,0.21648871,67934.0,67933.0,0.157524]
[1722043681204,0.2395895,67934.0,67933.0,0.157524]
[1722043681614,0.21648871,67934.0,67933.0,0.157524]
[1722043682704,0.21905012,67934.0,67933.0,0.157524]
[1722043682942,0.21942007,67934.0,67933.0,0.157524]
[1722043684214,0.07760938,67934.0,67933.0,0.157524]
[1722043684486,0.24791117,67934.0,67933.0,0.157524]
[1722043684693,0.24791117,67934.0,67933.0,0.018924]
[1722043684893,0.39196564,67934.0,67933.0,0.018924]
[1722043687956,0.68636864,67934.0,67933.0,0.018924]
[1722043688192,0.76466864,67934.0,67933.0,0.018924]
[1722043688421,0.8971444,67934.0,67933.0,0.018924]
[1722043688895,0.87404361,67934.0,67933.0,0.018924]
[1722043689295,0.74156785,67934.0,67933.0,0.018924]
[1722043689532,0.66735988,67934.0,67933.0,0.018924]
[1722043689745,0.87324577,67934.0,67933.0,0.018924]
[1722043689966,1.31724877,67934.0,67933.0,0.018924]
[1722043690182,1.18475937,67934.0,67933.0,0.018924]
[1722043690390,1.47916237,67934.0,67933.0,0.018924]
[1722043692146,1.50226364,67934.0,67933.0,0.018924]
[1722043692349,1.47916237,67934.0,67933.0,0.018924]
[1722043694165,1.39341412,67934.0,67933.0,0.018924]
[1722043695161,1.41651539,67934.0,67933.0,0.018924]
[1722043697738,1.39341412,67934.0,67933.0,0.018924]
[1722043700460,1.41651582,67934.0,67933.0,0.018924]
[1722043702257,1.32891412,67934.0,67933.0,0.018924]
[1722043702643,0.94941112,67934.0,67933.0,0.018924]
[1722043703834,0.87111112,67934.0,67933.0,0.018924]
[1722043712186,0.13510412,67934.0,67933.0,0.1709988]
[1722043712389,0.15564415,67934.0,67933.0,0.1709988]
[1722043712593,0.15820556,67934.0,67933.0,0.1709988]
[1722043712801,0.28230512,67934.0,67933.0,0.1709988]
[1722043713007,0.28230512,67934.0,67933.0,0.162524]
[1722043714057,0.13410412,67934.0,67933.0,0.162524]
[1722043714263,0.02309503,67934.0,67933.0,0.162524]
[1722043714466,0.28130512,67934.0,67933.0,0.162524]
[1722043714626,0.28230512,67934.0,67933.0,0.162524]
[1722043715293,0.35584013,67934.0,67933.0,0.162524]
[1722043715450,0.37894119,67934.0,67933.0,0.162524]
[1722043715815,0.35584013,67934.0,67933.0,0.162524]
[1722043717345,0.35582908,67934.0,67933.0,0.162524]
[1722043718063,0.20762808,67934.0,67933.0,0.162524]
[1722043718716,0.20606667,67934.0,67933.0,0.162524]
[1722043719166,0.20762808,67934.0,67933.0,0.162524]
[1722043719385,0.35582908,67934.0,67933.0,0.083824]
[1722043720215,0.20862808,67934.0,67933.0,0.083824]
[1722043720433,0.23172905,67934.0,67933.0,0.083824]
[1722043720858,0.23156809,67934.0,67933.0,0.083824]
[1722043722710,0.3640728,67934.0,67933.0,0.083824]
[1722043723596,0.23156809,67934.0,67933.0,0.083824]
[1722043724075,0.23157397,67934.0,67933.0,0.083824]
[1722043724298,0.23057397,67934.0,67933.0,0.083824]
[1722043724539,0.23057397,67934.0,67933.0,0.608534]
[1722043724540,0.22901256,67934.0,67933.0,0.608534]
[1722043727316,0.15564368,67934.0,67933.0,0.608534]
[1722043727546,0.11798334,67934.0,67933.0,0.608534]
[1722043727744,0.22899243,67934.0,67933.0,0.608534]
[1722043728331,0.23055384,67934.0,67933.0,0.608534]
[1722043730137,0.22899243,67934.0,67933.0,0.608534]
[1722043730900,0.22893065,67934.0,67933.0,0.608534]
[1722043731348,0.15564368,67934.0,67933.0,0.608534]
[1722043731579,0.11796838,67934.0,67933.0,0.608534]
[1722043731806,0.22897747,67934.0,67933.0,0.608534]
[1722043732289,0.2304439,67934.0,67933.0,0.608534]
[1722043732500,0.22888249,67934.0,67933.0,0.608534]
[1722043732761,0.2304439,67934.0,67933.0,0.608534]
[1722043734659,0.22888249,67934.0,67933.0,0.608534]
[1722043734874,0.2304439,67934.0,67933.0,0.608534]
[1722043735087,0.20742572,67934.0,67933.0,0.608534]
[1722043735297,0.20898713,67934.0,67933.0,0.608534]
[1722043735723,0.23208787,67934.0,67933.0,0.608534]
[1722043736160,0.20898713,67934.0,67933.0,0.608534]
[1722043736428,0.20742572,67934.0,67933.0,0.608534]
[1722043736846,0.20898713,67934.0,67933.0,0.608534]
[1722043738639,0.20896914,67934.0,67933.0,0.608534]
[1722043738843,0.23206988,67934.0,67933.0,0.608534]
[1722043739858,0.23206275,67934.0,67933.0,0.608534]
[1722043739997,0.23050134,67934.0,67933.0,0.608534]
[1722043740224,0.2074006,67934.0,67933.0,0.608534]
[1722043740863,0.20896446,67934.0,67933.0,0.608534]
[1722043741095,0.20996446,67934.0,67933.0,0.460534]
[1722043743834,0.20989392,67934.0,67933.0,0.460534]
[1722043746507,0.20989392,67934.0,67933.0,0.166127]
[1722043746705,0.23299449,67934.0,67933.0,0.166127]
[1722043747143,0.23294336,67934.0,67933.0,0.166127]
[1722043747334,0.20984279,67934.0,67933.0,0.166127]
[1722043747454,0.20984279,67934.0,67933.0,0.018924]
[1722043747658,0.20984279,67934.0,67933.0,0.166127]
[1722043750527,0.21002186,67934.0,67933.0,0.166127]
[1722043750739,0.23312252,67934.0,67933.0,0.166127]
[1722043753590,0.23312252,67934.0,67933.0,0.018924]
[1722043753913,0.23312053,67934.0,67933.0,0.018924]
[1722043754119,0.96532379,67934.0,67933.0,0.018924]
[1722043754322,1.11252479,67934.0,67933.0,0.018924]
[1722043754551,1.24506402,67934.0,67933.0,0.018924]
[1722043755392,0.75752179,67934.0,67933.0,0.018924]
[1722043757363,0.7574612,67934.0,67933.0,0.018924]
[1722043759459,0.68425298,67934.0,67933.0,0.018924]
[1722043759658,0.75661701,67934.0,67933.0,0.018924]
[1722043760648,0.73351635,67934.0,67933.0,0.018924]
[1722043760911,0.73358913,67934.0,67933.0,0.018924]
[1722043763302,0.43918613,67934.0,67933.0,0.018924]
[1722043763656,0.20762372,67934.0,67933.0,0.276703]
[1722043763803,0.20662372,67934.0,67933.0,0.276703]
[1722043764209,0.13337511,67934.0,67933.0,0.276703]
[1722043764438,0.20680306,67934.0,67933.0,0.276703]
[1722043764642,0.20680306,67934.0,67933.0,0.166127]
[1722043764815,0.20836447,67934.0,67933.0,0.166127]
[1722043767275,0.20680306,67934.0,67933.0,0.166127]
[1722043767482,0.20831779,67934.0,67933.0,0.16607282]
[1722043768300,0.22985731,67934.0,67933.0,0.16607282]
[1722043768471,0.20675638,67934.0,67933.0,0.16607282]
[1722043770793,0.20831779,67934.0,67933.0,0.16701953]
[1722043771001,0.20831779,67934.0,67933.0,0.46047982]
[1722043771002,0.2067602,67934.0,67933.0,0.46047982]
[1722043771613,0.2067602,67934.0,67933.0,0.16607282]
[1722043772050,0.22986113,67934.0,67933.0,0.16607282]
[1722043773289,0.23142254,67934.0,67933.0,0.16607282]
[1722043773507,0.22986113,67934.0,67933.0,0.16607282]
[1722043773711,0.22986113,67934.0,67933.0,0.23127282]
[1722043773934,0.22986113,67934.0,67933.0,0.31037282]
[1722043774371,0.23076648,67934.0,67933.0,0.89918682]
[1722043774591,0.15647604,67934.0,67933.0,1.49203241]
[1722043774808,0.15647604,67934.0,67933.0,1.8955772]
[1722043774809,0.02211739,67934.0,67933.0,1.8955772]
[1722043775245,0.02211739,67934.0,67933.0,1.8865772]
[1722043775704,0.02211739,67934.0,67933.0,1.8775772]
[1722043775909,0.02211739,67934.0,67933.0,1.8915772]
[1722043776560,0.02211739,67934.0,67933.0,1.90943028]
[1722043777268,0.02211739,67934.0,67933.0,1.90043028]
[1722043777493,0.02211739,67934.0,67933.0,1.90075526]
[1722043777976,0.04521473,67934.0,67933.0,1.90075526]
[1722043778224,0.02211739,67934.0,67933.0,1.91475526]
[1722043779922,0.02211739,67934.0,67933.0,1.32190967]
[1722043780136,0.02211739,67934.0,67933.0,1.25359382]
[1722043785921,0.04521462,67934.0,67933.0,1.25359382]
[1722043786119,0.02211739,67934.0,67933.0,1.25359382]
[1722043787495,0.02211739,67934.0,67933.0,1.50203241]
[1722043789326,0.04521457,67934.0,67933.0,1.50203241]
[1722043789791,0.02211739,67934.0,67933.0,1.50203241]
[1722043790987,0.02211739,67934.0,67933.0,1.25359382]
[1722043791338,0.02211739,67934.0,67933.0,1.50203241]
[1722043793113,0.04521454,67934.0,67933.0,1.50203241]
[1722043794112,0.02211739,67934.0,67933.0,1.50203241]
[1722043797231,0.04521457,67934.0,67933.0,1.50203241]
[1722043797448,0.02211739,67934.0,67933.0,1.50203241]
[1722043799885,0.02211739,67934.0,67933.0,1.25359382]
[1722043800843,0.04521462,67934.0,67933.0,1.25359382]
[1722043801057,0.04521462,67934.0,67933.0,1.17449382]
[1722043801264,0.12287603,67934.0,67933.0,0.02886982]
[1722043801475,0.30187849,67934.0,67933.0,0.02886982]
[1722043801682,0.27878126,67934.0,67933.0,0.02886982]
[1722043801890,0.27878126,67934.0,67933.0,0.76488682]
[1722043802103,0.21598126,67934.0,67933.0,0.47047982]
[1722043802285,0.21441985,67934.0,67933.0,0.47047982]
[1722043802740,0.21441985,67934.0,67933.0,0.17607282]
[1722043804282,0.21441985,67934.0,67933.0,0.47047982]
[1722043804499,0.21441985,67934.0,67933.0,0.17607282]
[1722043808016,0.21598126,67934.0,67933.0,0.17607282]
[1722043808467,0.23908046,67934.0,67933.0,0.17607282]
[1722043808934,0.21441985,67934.0,67933.0,0.17607282]
[1722043811956,0.23751905,67934.0,67933.0,0.17607282]
[1722043812668,0.23908046,67934.0,67933.0,0.17607282]
[1722043812893,0.23751905,67934.0,67933.0,0.17607282]
[1722043813124,0.21441985,67934.0,67933.0,0.17607282]
[1722043814083,0.21598126,67934.0,67933.0,0.17607282]
[1722043819307,0.21598126,67934.0,67933.0,0.02886982]
[1722043819757,0.21598126,67934.0,67933.0,0.02981653]
[1722043820540,0.21441985,67934.0,67933.0,0.17607282]
[1722043820993,0.23908067,67934.0,67933.0,0.17607282]
[1722043821215,0.23751926,67934.0,67933.0,0.17607282]
[1722043821665,0.21441985,67934.0,67933.0,0.17607282]
[1722043822094,0.21441985,67934.0,67933.0,0.47047982]
[1722043822789,0.21441985,67934.0,67933.0,0.55557982]
[1722043823005,0.21441985,67934.0,67933.0,0.26117282]
[1722043824390,0.21441985,67934.0,67933.0,0.55557982]
[1722043825083,0.23751905,67934.0,67933.0,0.55557982]
[1722043826231,0.21441985,67934.0,67933.0,0.55557982]
[1722043832061,0.21598126,67934.0,67933.0,0.02886982]
[1722043832279,0.26108433,67934.0,67933.0,0.02886982]
[1722043832497,1.20087012,67934.0,67933.0,0.02886982]
[1722043832705,1.22292203,67934.0,67933.0,0.02886982]
[1722043832976,1.25677152,67934.0,67933.0,0.02886982]
[1722043833185,1.17167152,67934.0,67933.0,0.02886982]
[1722043833391,1.17167152,67934.0,67933.0,0.01486982]
[1722043833594,1.17167152,67934.0,67933.0,0.02786982]
[1722043834008,1.1490545,67934.0,67933.0,0.02786982]
[1722043834400,1.1490545,67934.0,67933.0,0.01386982]
[1722043834556,1.1490545,67934.0,67933.0,0.02686982]
[1722043836186,0.8546515,67934.0,67933.0,0.02686982]
[1722043837221,1.1490545,67934.0,67933.0,0.02686982]
[1722043837438,0.8546515,67934.0,67933.0,0.02686982]
[1722043840740,0.85465913,67934.0,67933.0,0.02686982]
[1722043841396,0.87775893,67934.0,67933.0,0.02686982]
[1722043841632,0.85465913,67934.0,67933.0,0.02686982]
[1722043841872,1.14906213,67934.0,67933.0,0.02686982]
[1722043842297,0.85465913,67934.0,67933.0,0.02686982]
[1722043842521,1.14906213,67934.0,67933.0,0.02686982]
[1722043842960,0.85465913,67934.0,67933.0,0.02686982]
[1722043843391,1.14906213,67934.0,67933.0,0.02686982]
[1722043843863,1.46646513,67934.0,67933.0,0.02686982]
[1722043844108,1.39140026,67934.0,67933.0,0.02686982]
[1722043844342,1.46634924,67934.0,67933.0,0.02686982]
[1722043844791,1.46634924,67934.0,67933.0,0.01386982]
[1722043845021,1.48945006,67934.0,67933.0,0.00086982]
[1722043845241,1.48945006,67934.0,67933.0,0.01286982]
[1722043846736,1.58945006,67934.0,67933.0,0.01286982]
[1722043846994,1.56634924,67934.0,67933.0,0.01286982]
[1722043847197,1.82203957,67934.0,67933.0,0.01286982]
[1722043847417,1.49140026,67934.0,67933.0,0.01286982]
[1722043847626,1.56568841,67934.0,67933.0,0.01286982]
[1722043847844,1.56618282,67934.0,67933.0,0.00686982]
[1722043848062,1.56718282,67934.0,67933.0,0.00086982]
[1722043848301,1.56918282,67934.0,67933.0,0.00086982]
[1722043848740,1.65428282,67934.0,67933.0,0.00086982]
[1722043849358,1.78643719,67934.0,67933.0,0.00086982]
[1722043849582,1.56918282,67934.0,67933.0,0.00086982]
[1722043850658,1.56718282,67934.0,67933.0,0.00086982]
[1722043851124,1.56618282,67934.0,67933.0,0.00586982]
[1722043851339,1.56618282,67934.0,67933.0,0.01086982]
[1722043852033,1.86618282,67934.0,67933.0,0.01086982]
[1722043852270,1.94288499,67934.0,67933.0,0.01086982]
[1722043852629,1.86618282,67934.0,67933.0,0.01086982]
[1722043854315,1.88928141,67934.0,67933.0,0.01086982]
[1722043854523,1.91238318,67934.0,67933.0,0.01086982]
[1722043857581,1.91243986,67934.0,67933.0,0.01086982]
[1722043857827,1.91243986,67934.0,67933.0,0.00586982]
[1722043858159,1.91243986,67934.0,67933.0,0.00986982]
[1722043858991,1.91243986,67934.0,67933.0,0.00486982]
[1722043859407,1.91243986,67934.0,67933.0,0.00886982]
[1722043859808,1.99466411,67934.0,67933.0,0.00886982]
[1722043860015,2.04466411,67934.0,67933.0,0.00886982]
[1722043860218,2.33906711,67934.0,67933.0,0.00886982]
[1722043860617,2.44658052,67934.0,67933.0,0.00886982]
[1722043860817,2.45353628,67934.0,67933.0,0.00086982]
[1722043860987,2.45653628,67934.0,67933.0,0.00086982]
[1722043861194,2.45853628,67934.0,67933.0,0.00086982]
[1722043861591,2.45653628,67934.0,67933.0,0.00086982]
[1722043862027,2.45853628,67934.0,67933.0,0.00086982]
[1722043862779,2.45553628,67934.0,67933.0,0.00086982]
[1722043862977,2.43243451,67934.0,67933.0,0.00086982]
[1722043863398,2.68811816,67934.0,67933.0,0.00086982]
[1722043863804,2.98884691,67934.0,67933.0,0.00086982]
[1722043864019,3.13740399,67934.0,67933.0,0.00086982]
[1722043864225,3.13737266,67934.0,67933.0,0.00086982]
[1722043864436,2.98884691,67934.0,67933.0,0.00086982]
[1722043865276,2.9883068,67934.0,67933.0,0.00086982]
[1722043865496,3.13856637,67934.0,67933.0,0.00086982]
[1722043865714,2.9883068,67934.0,67933.0,0.00086982]
[1722043865933,2.9883068,67934.0,67921.0,0.000924]
[1722043865934,0.79818841,67922.0,67921.0,0.000924]
[1722043866163,2.21773446,67922.0,67921.0,0.000924]
[1722043866363,2.53518946,67922.0,67921.0,0.000924]
[1722043867332,2.40319347,67922.0,67921.0,0.000924]
[1722043867655,2.40319347,67922.0,67921.0,0.001924]
[1722043867806,2.40324186,67922.0,67921.0,0.002924]
[1722043869876,3.36850242,67922.0,67921.0,0.002924]
[1722043870082,0.34981241,67911.0,67910.0,0.000924]
[1722043870245,2.01891201,67911.0,67910.0,0.000924]
[1722043870657,2.04202128,67911.0,67910.0,0.000924]
[1722043870847,2.01891201,67911.0,67910.0,0.000924]
[1722043871052,1.68588125,67911.0,67910.0,0.000924]
[1722043871268,1.66388343,67911.0,67910.0,0.0024782]
[1722043871499,1.66388343,67911.0,67910.0,0.0064782]
[1722043871916,1.66388343,67911.0,67910.0,0.0094782]
[1722043872671,1.66388343,67911.0,67910.0,0.007924]
[1722043872877,1.57600901,67911.0,67910.0,0.007924]
[1722043873480,1.57600901,67911.0,67910.0,0.003924]
[1722043873481,1.57635655,67911.0,67910.0,0.003924]
[1722043873743,1.57635655,67911.0,67910.0,0.005924]
[1722043873943,1.59946552,67911.0,67910.0,0.005924]
[1722043874924,1.57635655,67911.0,67910.0,0.005924]
[1722043875223,1.64223551,67911.0,67910.0,0.005924]
[1722043875660,1.65088667,67911.0,67910.0,0.005924]
[1722043876668,2.24397324,67911.0,67910.0,0.005924]
[1722043876868,2.24405293,67911.0,67910.0,0.005924]
[1722043877095,2.17817397,67911.0,67910.0,0.005924]
[1722043877528,2.24405493,67911.0,67910.0,0.005924]
[1722043877918,1.94955193,67911.0,67910.0,0.005924]
[1722043878122,1.97266087,67911.0,67910.0,0.005924]
[1722043878467,2.26716387,67911.0,67910.0,0.005924]
[1722043878823,1.90677991,67911.0,67910.0,0.005924]
[1722043879028,2.20128291,67911.0,67910.0,0.005924]
[1722043879378,1.94954358,67911.0,67910.0,0.000924]
[1722043879595,2.24704676,67911.0,67910.0,0.000924]
[1722043879793,1.95254376,67911.0,67910.0,0.000924]
[1722043880015,1.88670143,67911.0,67910.0,0.000924]
[1722043880205,1.81052839,67911.0,67910.0,0.000924]
[1722043880433,1.88670097,67911.0,67910.0,0.000924]
[1722043880820,1.6744414,67911.0,67910.0,0.000924]
[1722043880953,1.7595414,67911.0,67910.0,0.0024782]
[1722043882500,1.80345135,67911.0,67910.0,0.0024782]
[1722043882705,1.7595414,67911.0,67910.0,0.0024782]
[1722043883122,1.8241414,67911.0,67910.0,0.0024782]
[1722043883324,1.86804788,67911.0,67910.0,0.000924]
[1722043883555,1.89822839,67911.0,67910.0,0.000924]
[1722043883724,2.01803927,67911.0,67910.0,0.000924]
[1722043885330,2.01803944,67911.0,67910.0,0.000924]
[1722043885754,1.97413164,67911.0,67910.0,0.000924]
[1722043886181,1.99724069,67911.0,67910.0,0.000924]
[1722043886815,2.03519627,67911.0,67910.0,0.000924]
[1722043887027,1.89343158,67911.0,67910.0,0.000924]
[1722043887256,2.03520934,67911.0,67910.0,0.000924]
[1722043889319,1.9693466,67911.0,67910.0,0.000924]
[1722043889529,1.96943359,67911.0,67910.0,0.000924]
[1722043890078,1.99254264,67911.0,67910.0,0.000924]
[1722043890292,1.85194063,67911.0,67910.0,0.000924]
[1722043890498,1.92793763,67911.0,67910.0,0.000924]
[1722043890704,1.69727806,67911.0,67910.0,0.000924]
[1722043891028,1.67416901,67911.0,67910.0,0.0825782]
[1722043891229,1.67416901,67911.0,67910.0,0.081024]
[1722043892001,1.67216901,67911.0,67910.0,0.000924]
[1722043892213,1.67216901,67911.0,67910.0,0.0024782]
[1722043892422,1.73804938,67911.0,67910.0,0.0024782]
[1722043893254,1.73704938,67911.0,67910.0,0.0024782]
[1722043893463,1.73704938,67911.0,67910.0,0.0034782]
[1722043893911,1.73687571,67911.0,67910.0,0.0034782]
[1722043894521,1.73683977,67911.0,67910.0,0.0034782]
[1722043895196,1.6709594,67911.0,67910.0,0.0034782]
[1722043895398,1.6709594,67911.0,67910.0,0.001924]
[1722043896123,1.7481594,67911.0,67910.0,0.001924]
[1722043897193,1.83607927,67911.0,67910.0,0.001924]
[1722043898345,1.74816569,67911.0,67910.0,0.001924]
[1722043898757,1.87974586,67911.0,67910.0,0.001924]
[1722043899399,1.85663711,67911.0,67910.0,0.001924]
[1722043900655,1.85700944,67911.0,67910.0,0.001924]
[1722043901382,1.74837813,67911.0,67910.0,0.001924]
[1722043902486,1.38607813,67911.0,67910.0,0.062124]
[1722043902618,1.47117813,67911.0,67910.0,0.138424]
[1722043902839,1.49428688,67911.0,67910.0,0.138424]
[1722043903749,1.47117813,67911.0,67910.0,0.138424]
[1722043904181,1.47117813,67911.0,67910.0,0.062124]
[1722043906991,1.49428657,67911.0,67910.0,0.062124]
[1722043907537,1.47088094,67911.0,67910.0,0.062124]
[1722043908208,1.60305142,67911.0,67910.0,0.062124]
[1722043909247,1.60305142,67911.0,67910.0,0.001924]
[1722043909248,1.47088094,67911.0,67910.0,0.001924]
[1722043910449,1.49398955,67911.0,67910.0,0.001924]
[1722043910631,1.49399127,67911.0,67910.0,0.001924]
[1722043911302,1.47088266,67911.0,67910.0,0.001924]
[1722043914099,1.47079101,67911.0,67910.0,0.001924]
[1722043914713,1.49389687,67911.0,67910.0,0.001924]
[1722043914923,1.51700551,67911.0,67910.0,0.001924]
[1722043915145,1.64278584,67911.0,67910.0,0.001924]
[1722043915359,1.49389687,67911.0,67910.0,0.001924]
[1722043915778,1.64278584,67911.0,67910.0,0.001924]
[1722043915983,1.60213987,67911.0,67910.0,0.001924]
[1722043916218,1.75106319,67911.0,67910.0,0.001924]
[1722043917391,1.60213987,67911.0,67910.0,0.001924]
[1722043918606,1.62524855,67911.0,67910.0,0.001924]
[1722043918811,1.60213987,67911.0,67910.0,0.001924]
[1722043920756,1.41827787,67911.0,67910.0,0.001924]
[1722043920966,1.60223627,67911.0,67910.0,0.001924]
[1722043921690,1.62534495,67911.0,67910.0,0.001924]
[1722043922310,1.51703726,67911.0,67910.0,0.001924]
[1722043922761,1.37786182,67911.0,67910.0,0.001924]
[1722043922995,1.35475314,67911.0,67910.0,0.001924]
[1722043923448,1.49385523,67911.0,67910.0,0.001924]
[1722043926371,1.51696361,67911.0,67910.0,0.001924]
[1722043926862,1.51687386,67911.0,67910.0,0.001924]
[1722043927456,1.49084382,67911.0,67910.0,0.001924]
[1722043927677,1.77279929,67911.0,67910.0,0.001924]
[1722043928156,1.62394284,67911.0,67910.0,0.001924]
[1722043928370,1.60083446,67911.0,67910.0,0.001924]
[1722043930252,1.75005567,67911.0,67910.0,0.001924]
[1722043930489,1.64181982,67911.0,67910.0,0.001924]
[1722043930769,1.49295955,67911.0,67910.0,0.001924]
[1722043931415,1.51606804,67911.0,67910.0,0.001924]
[1722043931853,1.49295955,67911.0,67910.0,0.001924]
[1722043933646,1.64161326,67911.0,67910.0,0.001924]
[1722043934577,1.64125179,67911.0,67910.0,0.001924]
[1722043934881,0.79528094,67911.0,67910.0,0.064724]
[1722043935116,0.81838943,67911.0,67910.0,0.146224]
[1722043935583,0.50031563,67911.0,67910.0,0.293477]
[1722043935815,0.34487578,67911.0,67910.0,0.146224]
[1722043936502,0.45545546,67911.0,67910.0,0.146224]
[1722043936756,0.45545286,67911.0,67910.0,0.146224]
[1722043937021,0.26949818,67911.0,67910.0,0.145224]
[1722043937307,0.16849818,67911.0,67910.0,0.586984]
[1722043937567,0.16101277,67911.0,67910.0,0.589984]
[1722043937828,0.16257418,67911.0,67910.0,0.586984]
[1722043938132,0.16357418,67911.0,67910.0,0.586984]
[1722043938355,0.2307074,67911.0,67910.0,0.598984]
[1722043938608,0.16457418,67911.0,67910.0,0.596984]
[1722043938821,0.18398434,67911.0,67910.0,0.900491]
[1722043939025,0.13990691,67911.0,67910.0,0.900491]
[1722043939240,0.16301325,67911.0,67910.0,0.900491]
[1722043939483,0.02607583,67911.0,67910.0,0.891491]
[1722043939933,0.02607583,67911.0,67910.0,0.900491]
[1722043939934,0.02707583,67911.0,67910.0,0.900491]
[1722043940144,0.02607583,67911.0,67910.0,0.890491]
[1722043940356,0.02707583,67911.0,67910.0,0.899491]
[1722043940779,0.02707583,67911.0,67910.0,0.890491]
[1722043940988,0.02507583,67911.0,67910.0,0.881491]
[1722043941217,0.11710703,67913.0,67912.0,0.735245]
[1722043941445,0.04405441,67915.0,67914.0,0.1466]
[1722043941646,0.07852219,67915.0,67914.0,0.588335]
[1722043941861,0.19557949,67915.0,67914.0,0.588335]
[1722043942296,0.1971409,67915.0,67914.0,0.588335]
[1722043942645,0.15308649,67915.0,67914.0,0.588335]
[1722043942843,0.15308649,67915.0,67914.0,0.1466]
[1722043943178,0.30132849,67915.0,67914.0,0.1466]
[1722043943390,0.59581349,67915.0,67914.0,0.1466]
[1722043943959,0.30132849,67915.0,67914.0,0.1456]
[1722043944358,0.15408649,67915.0,67914.0,0.1456]
[1722043944740,0.15508649,67915.0,67914.0,0.1566]
[1722043945210,0.15508649,67915.0,67914.0,0.1676]
[1722043946036,0.59681349,67915.0,67914.0,0.1676]
[1722043946235,0.30232849,67915.0,67914.0,0.1676]
[1722043947085,0.32543414,67915.0,67914.0,0.1676]
[1722043947302,0.15508649,67915.0,67914.0,0.1676]
[1722043947573,0.30232849,67915.0,67914.0,0.1676]
[1722043950535,0.15508649,67915.0,67914.0,0.1676]
[1722043950753,0.06113484,67915.0,67914.0,0.1676]
[1722043950969,0.15308259,67915.0,67914.0,0.1676]
[1722043951183,0.30032459,67915.0,67914.0,0.1676]
[1722043952284,0.15308259,67915.0,67914.0,0.1676]
[1722043952504,0.03802919,67915.0,67914.0,0.1676]
[1722043952680,0.15308259,67915.0,67914.0,0.1676]
[1722043953329,0.15208259,67915.0,67914.0,0.1676]
[1722043954140,0.17518828,67915.0,67914.0,0.1676]
[1722043954933,0.32243028,67915.0,67914.0,0.1676]
[1722043955385,0.15208259,67915.0,67914.0,0.1676]
[1722043956376,0.03546778,67915.0,67914.0,0.1676]
[1722043956586,0.03546778,67915.0,67914.0,0.314845]
[1722043957847,0.03546778,67915.0,67914.0,0.903825]
[1722043958365,0.03546778,67915.0,67914.0,1.198315]
[1722043959097,0.03446778,67915.0,67914.0,1.176315]
[1722043959297,0.03362566,67915.0,67914.0,0.581135]
[1722043959655,0.11770964,67921.0,67920.0,0.581096]
[1722043959779,0.03615803,67921.0,67920.0,0.666196]
[1722043959962,0.03615803,67921.0,67920.0,0.96066]
[1722043960813,0.03615803,67921.0,67920.0,0.97166]
[1722043961037,0.03615803,67921.0,67920.0,0.98266]
[1722043962671,0.05926149,67921.0,67920.0,0.98266]
[1722043962900,0.03615803,67921.0,67920.0,0.98266]
[1722043966350,0.05926136,67921.0,67920.0,0.98266]
[1722043966855,0.06082277,67921.0,67920.0,0.308632]
[1722043967070,0.03771944,67921.0,67920.0,0.231232]
[1722043968191,0.15610988,67921.0,67920.0,0.231232]
[1722043968704,0.03771944,67921.0,67920.0,0.231232]
[1722043968889,0.03771944,67921.0,67920.0,0.525696]
[1722043972619,0.03771944,67921.0,67920.0,0.231232]
[1722043973320,0.03771944,67921.0,67920.0,0.525696]
[1722043974176,0.06082293,67921.0,67920.0,0.525696]
[1722043974850,0.03771944,67921.0,67920.0,0.525696]
[1722043978212,0.06082284,67921.0,67920.0,0.525696]
[1722043978872,0.04428846,67921.0,67920.0,0.525696]
[1722043979854,0.16461286,67921.0,67920.0,0.525696]
[1722043980064,0.16472684,67921.0,67920.0,0.525696]
[1722043981341,0.16472684,67921.0,67920.0,0.231232]
[1722043981591,0.04428846,67921.0,67920.0,0.231232]
[1722043982269,0.04428846,67921.0,67920.0,0.525696]
[1722043982477,0.04272705,67921.0,67920.0,0.525696]
[1722043982871,0.16472684,67921.0,67920.0,0.525696]
[1722043983293,0.04428846,67921.0,67920.0,0.525696]
[1722043983468,0.06739187,67921.0,67920.0,0.525696]
[1722043983667,0.04272705,67921.0,67920.0,0.525696]
[1722043986241,0.18626883,67921.0,67920.0,0.525696]
[1722043986460,0.16316543,67921.0,67920.0,0.525696]
[1722043986708,0.04272705,67921.0,67920.0,0.525696]
[1722043987853,0.16316543,67921.0,67920.0,0.525696]
[1722043988304,0.04272705,67921.0,67920.0,0.525696]
[1722043989470,0.06583048,67921.0,67920.0,0.525696]
[1722043989910,0.04272705,67921.0,67920.0,0.525696]
[1722043990141,0.16316543,67921.0,67920.0,0.525696]
[1722043990389,0.16316543,67921.0,67920.0,0.98256]
[1722043990612,0.04272705,67921.0,67920.0,0.98256]
[1722043991246,0.04272705,67921.0,67920.0,0.97156]
[1722043991483,0.04272705,67921.0,67920.0,1.255024]
[1722043991741,0.04272705,67921.0,67920.0,1.269024]